[Event "USA Championship 2022"]
[Site "Saint Louis"]
[Date "2022.10.18"]
[Round "12.2"]
[White "Shankland, Sam"]
[Black "Caruana, Fabiano"]
[Result "1/2-1/2"]
[ECO "A34"]
[WhiteElo "2712"]
[BlackElo "2763"]
[Annotator "TA"]
[PlyCount "78"]
[EventDate "2022.09.05"]
[EventType "tourn"]
[EventCountry "USA"]
[SourceTitle "playchess.com"]
[Source "ChessBase"]
[SourceQuality "1"]
[TimeControl "40/5400+30:1800+30"]

{[%evp 12,78,12,-12,15,20,17,27,25,9,10,6,42,24,31,0,0,0,15,3,12,18,19,19,23,17,9,15,14,9,8,12,14,10,12,12,17,8,16,10,10,19,21,0,0,0,10,0,0,2,35,-79,-80,-83,-19,-12,-12,-12,-12,-12,-12,-12,0,0,0,-12,0,0,0]} 1. c4 {[%emt 0:00:10]} c5 {[%emt 0:00:05]} 2. Nf3 {[%emt 0:00:12]} Nf6 {[%emt 0:00:07]} 3. g3 {[%emt 0:00:57]} Nc6 {[%emt 0:01:41]} 4. Bg2 {[%emt 0:00:11]} d5 {[%emt 0:00:09]} 5. cxd5 {[%emt 0:00:06]} Nxd5 {[%emt 0:00:04]} 6. Nc3 {[%emt 0:00:07]} g6 {[%emt 0:01:16]} 7. Qa4 {[%emt 0:01:05] Threatens to win with Ne5.} e6 {[%emt 0:09:27] A34: Symmetrical English: 2 Nc3, lines with ...d5.} 8. Ne5 {[%emt 0:07:06] [#]} Bd7 $146 {[%emt 0:08:31]} ({Predecessor:} 8... Qd6 9. Nxc6 Qxc6 10. Qc4 Bg7 11. Nxd5 exd5 12. Bxd5 {1-0 (53) Zickus,S (2269)-Sabaliauskas,L Palanga 2008}) 9. Nxd7 {[%emt 0:00:17]} Qxd7 {[%emt 0:00:04] White has an edge.} 10. d3 {[%emt 0:03:24]} Bg7 {[%emt 0:01:17]} 11. Bd2 {[%emt 0:00:48]} O-O {[%emt 0:00:50]} 12. Rc1 {[%emt 0:02:43]} b6 {[%emt 0:05:00]} 13. O-O {[%emt 0:06:10]} (13. h4 $5 {[%cal Rh4h5]}) 13... Rad8 {[%emt 0:00:31]} 14. Rfd1 {[%emt 0:03:07]} h6 {[%emt 0:02:20]} 15. Kf1 {[%emt 0:06:27]} f5 {[%emt 0:12:55]} 16. a3 {[%emt 0:10:40]} Nd4 {[%emt 0:04:25]} 17. Qxd7 {[%emt 0:00:23]} Rxd7 {[%emt 0:00:04]} 18. Nxd5 {[%emt 0:00:38]} exd5 {[%emt 0:00:04]} 19. b4 {[%emt 0:00:25]} Nb3 {[%emt 0:01:25]} 20. bxc5 {[%emt 0:03:50]} bxc5 {[%emt 0:00:40]} ({Much less strong is} 20... Nxc1 21. c6 Rc7 22. Bxd5+ (22. Rxc1 Rd8 $16) 22... Kh7 23. Rxc1 $16) 21. Rb1 {[%emt 0:01:06][%cal Bc1b1,Bb1b3,Bb3e3][%mdl 32]} Rb8 {[%emt 0:08:48] [#]} 22. Bb4 {[%emt 0:07:19]} cxb4 {[%emt 0:04:06]} 23. Rxb3 {[%emt 0:00:51]} Bf8 {[%emt 0:06:17]} 24. axb4 {[%emt 0:02:25]} Bxb4 {[%emt 0:01:23]} 25. Ra1 {[%emt 0:00:49]} Rb6 {[%emt 0:00:28]} 26. d4 {[%emt 0:04:19]} a5 {[%emt 0:01:17]} 27. Re3 {[%emt 0:02:39]} Kf7 {[%emt 0:03:57]} 28. Bf3 {[%emt 0:01:07]} Rb5 {[%emt 0:09:56]} 29. Rb3 {[%emt 0:02:38]} Rc7 {[%emt 0:00:34]} 30. h4 {[%emt 0:05:37]} h5 {[%emt 0:03:48]} 31. Rxa5 {[%emt 0:02:35]} Rxa5 $17 {[%emt 0:00:12]} 32. Rxb4 $14 {[%emt 0:00:03][%mdl 4096] Endgame [#] KRR-KRB} Kg7 {[%emt 0:03:04]} (32... Rc2 $1 $17) 33. Rb2 $11 {[%emt 0:01:50] The position is equal.} Kh6 {[%emt 0:03:03]} 34. Kg2 {[%emt 0:02:12]} Rc4 {[%emt 0:01:32]} 35. e3 {[%emt 0:00:23]} Rc7 {[%emt 0:01:49]} 36. Bd1 {[%emt 0:01:57]} Ra1 {[%emt 0:01:30]} 37. Bf3 {[%emt 0:00:45]} Ra5 {[%emt 0:00:04]} 38. Bd1 {[%emt 0:00:06]} Ra1 {[%emt 0:00:03]} 39. Bf3 {[%emt 0:00:30]} Ra5 {[%emt 0:00:17] Weighted Error Value: White=0.09 (flawless) /Black=0.11 (very precise)} 1/2-1/2

[Event "USA Championship 2022"]
[Site "Saint Louis"]
[Date "2022.10.18"]
[Round "12.3"]
[White "Sevian, Samuel"]
[Black "Niemann, Hans Moke"]
[Result "0-1"]
[ECO "D41"]
[WhiteElo "2684"]
[BlackElo "2699"]
[Annotator "TA"]
[PlyCount "156"]
[EventDate "2022.09.05"]
[EventType "tourn"]
[EventCountry "USA"]
[SourceTitle "playchess.com"]
[Source "ChessBase"]
[SourceQuality "1"]
[TimeControl "40/5400+30:1800+30"]

{[%evp 11,156,33,33,33,33,-14,29,26,26,26,23,3,9,7,21,15,14,14,10,17,14,14,19,11,13,25,18,6,10,-29,-31,-23,-22,-12,-28,-35,-49,-61,-43,-44,-27,-57,-58,-54,-48,-52,-61,-76,-76,-100,-98,-155,-111,-111,-111,-114,-108,-160,-129,-143,-94,-84,-93,-156,-99,-105,-68,-194,-176,-216,-209,-209,-201,-238,-33,-35,-8,-8,0,0,0,-7,0,0,0,-2028,-1835,-1765,-1747,-1626,-1626,-1253,-1253,-1111,-1089,-1074,-1035,-5534,-5027,-3115,-916,-29960,-29960,-29960,-2035,-29965,-29963,-29967,-29968,-29968,-29968,-29968,-29970,-29970,-29970,-29968,-29970,-29968,-29970,-29973,-29974,-29974,-29975,-29975,-29975,-29980,-29981,-29981,-29975,-29976,-29976,-29976,-29977,-29977,-29975,-29978,-29979,-29979,-29980,-29982,-29983,-29983,-29983,-29983,-29978,-29985,-29977]} 1. d4 {[%emt 0:02:20]} Nf6 {[%emt 0:02:26]} 2. c4 {[%emt 0:00:13]} e6 {[%emt 0:01:27]} 3. Nf3 {[%emt 0:00:18]} d5 {[%emt 0:00:11]} 4. Nc3 {[%emt 0:00:16]} c5 {[%emt 0:00:10]} 5. cxd5 {[%emt 0:00:43]} cxd4 {[%emt 0:00:50]} 6. Qxd4 {[%emt 0:01:16]} exd5 {[%emt 0:00:14]} 7. e4 {[%emt 0:11:03] D41: Queen's Gambit Declined: Semi-Tarrasch with 5 cxd5.} dxe4 $1 {[%emt 0:00:27][%mdl 4] is now more promising than 7...Nc6.} 8. Qxd8+ {[%emt 0:00:05]} Kxd8 {[%emt 0:00:13]} 9. Ng5 {[%emt 0:00:04][%csl LRe4,LRf7] White has an edge.} Be6 {[%emt 0:00:12]} 10. a3 {[%emt 0:00:05][%mdl 1024] Prevents Bb4. White has compensation.} Nbd7 {[%emt 0:00:10]} 11. Bf4 {[%emt 0:00:05] [#]} Rc8 $146 {[%emt 0:00:09]} ({Predecessor:} 11... Bb3 12. Ngxe4 Nxe4 13. Nxe4 Nc5 14. Nd2 Ba4 15. Bc4 Be7 16. b3 Bd7 17. O-O Rc8 {½-½ (31) Urkedal,F (2563)-Carlsson,L (2396) Kvisla 2021}) 12. g3 {[%emt 0:00:05][%cal Bg2g3,Bg3g4][%mdl 32]} Bb3 {[%emt 0:00:15]} 13. Bg2 {[%emt 0:00:13]} ({Much weaker is} 13. Ncxe4 Be7 14. Nc3 Re8 $15) 13... Nh5 {[%emt 0:00:06]} 14. Be3 {[%emt 0:00:23]} f5 {[%emt 0:00:05]} 15. g4 $1 {[%emt 0:00:07]} f4 {[%emt 0:00:04]} 16. Bd4 {[%emt 0:01:40]} f3 {[%emt 0:00:17]} 17. gxh5 {[%emt 0:00:07] Bh3 is the strong threat.} fxg2 {[%emt 0:00:06]} 18. Rg1 {[%emt 0:00:05]} Nf6 {[%emt 0:00:50]} 19. Rxg2 {[%emt 0:19:43]} Bc5 {[%emt 0:03:27]} 20. Rd1 {[%emt 0:23:25]} Bxd1 {[%emt 0:18:06] A strong pair of Bishops.} 21. Ne6+ {[%emt 0:00:12][%mdl 64] Discovered Attack, Double Attack} Ke7 {[%emt 0:00:49]} 22. Nxc5 {[%emt 0:01:35]} Bg4 {[%emt 0:03:46] aiming for ...Rhd8.} 23. N5xe4 {[%emt 0:10:35]} Nxe4 {[%emt 0:05:02]} 24. Rxg4 {[%emt 0:00:25]} Nxc3 {[%emt 0:00:15]} 25. Rxg7+ {[%emt 0:00:19]} Kd6 {[%emt 0:00:08]} 26. Bxc3 $11 {[%emt 0:01:22][%mdl 4096] Endgame KRR-KRB} Rhe8+ $1 {[%emt 0:00:08]} 27. Kf1 {[%emt 0:01:52]} Rc7 {[%emt 0:00:20]} 28. Rg4 {[%emt 0:03:09]} Rf7 {[%emt 0:00:39]} 29. a4 {[%emt 0:01:10]} b6 {[%emt 0:03:21]} 30. h6 {[%emt 0:05:53]} Re3 {[%emt 0:01:00]} 31. Rd4+ {[%emt 0:03:16]} (31. a5 $142) 31... Ke6 {[%emt 0:00:20] Black is more active.} 32. a5 {[%emt 0:01:51]} Ref3 {[%emt 0:01:39]} 33. Rd2 {[%emt 0:05:37]} b5 {[%emt 0:00:07]} 34. Bd4 {[%emt 0:02:04]} (34. Kg2 $142) 34... Rd7 $17 {[%emt 0:01:56]} 35. Kg2 {[%emt 0:00:47]} Rf5 {[%emt 0:00:39]} (35... Rf4 $142 36. Re2+ Kf7) 36. Re2+ {[%emt 0:00:06]} Kd5 {[%emt 0:00:04]} 37. Bg7 {[%emt 0:01:51]} (37. b3 $142) 37... Kc4 {[%emt 0:00:09]} (37... Rdf7 $142 38. h4 Rf4 39. Rd2+ Kc5) 38. Re4+ {[%emt 0:02:27]} Kb3 {[%emt 0:00:11]} 39. Re8 {[%emt 0:00:47]} (39. f4 $15) 39... Rdf7 {[%emt 0:30:41]} 40. Rh8 {[%emt 0:00:13]} Rg5+ {[%emt 0:11:33]} ({Inferior is} 40... Rxf2+ 41. Kg3 $17) 41. Kh3 {[%emt 0:06:02]} b4 {[%emt 0:01:45]} 42. Kh4 {[%emt 0:10:01]} Rg6 {[%emt 0:10:05]} (42... Rxa5 $19 43. Rxh7 Rxf2) 43. Rxh7 {[%emt 0:07:24]} Rxh6+ {[%emt 0:00:25][%mdl 64] Remove Defender} 44. Rxh6 {[%emt 0:00:18]} Rxg7 $15 {[%emt 0:00:03] KR-KR} 45. f4 {[%emt 0:06:44][%cal Bf2f4,Bf4f5,Bf5f6][%mdl 32]} Kxb2 {[%emt 0:03:16] Threatens to win with ...b3.} 46. f5 {[%emt 0:00:22]} b3 {[%emt 0:02:51]} 47. f6 {[%emt 0:00:23]} Rg2 {[%emt 0:00:26] Hoping for ...Ka2.} (47... Rf7 $5 48. Kg5 $8 Kc2 $11) 48. h3 $2 {[%emt 0:01:26][%mdl 8192] Black keeps a firm grip on the game.} ({Reject} 48. f7 Rf2 49. Rh7 Ka1 $19) (48. Rh5 $11) 48... Ka2 $19 {[%emt 0:02:39] ( -> ...b2)} 49. Rh7 {[%emt 0:02:06] [#]} b2 $1 {[%emt 0:00:09]} 50. Rb7 {[%emt 0:00:05] [#]} Rg6 $1 {[%emt 0:00:05]} 51. f7 {[%emt 0:00:29]} Rf6 {[%emt 0:00:58]} 52. Kg5 {[%emt 0:00:09] [#]} Rxf7 $3 {[%emt 0:00:07][%mdl 576] Promotion} 53. Rxf7 {[%emt 0:00:04]} b1=Q {[%emt 0:00:08] White must now prevent ...Qe1. KQ-KR} 54. h4 {[%emt 0:00:29]} Qg1+ {[%emt 0:00:20]} 55. Kh5 {[%emt 0:00:34]} Kb3 {[%emt 0:03:03]} 56. a6 {[%emt 0:01:24]} Kc4 {[%emt 0:00:17]} 57. Rg7 {[%emt 0:00:03]} Qc5+ {[%emt 0:00:59]} (57... Qe1 $142 58. Rg5 Kd4 59. Rg7 Qa5+ 60. Rg5 Qxa6 61. Rf5 Qe2+ 62. Kg5 Qe7+ 63. Kh5 Qe8+ 64. Kg4 Qd7 65. Kg5 a5 66. Rf3 a4 67. h5 a3 68. Rf5 a2 69. Rf1 Qg7+ 70. Kh4 Ke3 71. h6 Qxh6+ 72. Kg4 Qg6+ 73. Kh4 Ke2 74. Rh1 Qh6+ 75. Kg3 Qxh1 76. Kg4 a1=Q 77. Kf5 Qf3+ 78. Ke6 Qaf6+ 79. Kd7 Q3c6#) 58. Rg5 {[%emt 0:00:57]} Qe7 {[%emt 0:00:08] Black mates.} 59. Rf5 {[%emt 0:01:07]} Kd4 {[%emt 0:00:27]} 60. Kg4 {[%emt 0:00:03]} Qe6 {[%emt 0:00:25]} 61. Kg5 {[%emt 0:00:06]} Ke4 {[%emt 0:00:32]} 62. Rf6 {[%emt 0:00:30]} Qe7 {[%emt 0:00:55]} 63. Kg6 {[%emt 0:00:02]} Ke5 {[%emt 0:00:15]} 64. Rf5+ {[%emt 0:00:04]} Ke6 {[%emt 0:00:06]} 65. Rf4 {[%emt 0:00:09]} Qe8+ {[%emt 0:00:09]} 66. Kg5 {[%emt 0:00:20]} Qg8+ {[%emt 0:00:11]} 67. Kh5 {[%emt 0:00:04]} Ke5 {[%emt 0:00:07]} 68. Rf1 {[%emt 0:00:09]} Qd5 {[%emt 0:01:02]} 69. Rf8 {[%emt 0:00:18]} Qd1+ {[%emt 0:01:25]} 70. Kg5 {[%emt 0:00:28]} Qd2+ {[%emt 0:00:10]} 71. Kh5 {[%emt 0:00:07]} Qd7 {[%emt 0:01:56]} 72. Rf1 {[%emt 0:00:46]} Qb5 {[%emt 0:00:21][%csl LRa6,LRf1]} 73. Rf8 {[%emt 0:00:44]} Qxa6 {[%emt 0:01:18]} 74. Kg5 {[%emt 0:00:08]} Qe6 {[%emt 0:00:13]} 75. Rf1 {[%emt 0:00:12]} Qg8+ {[%emt 0:00:05]} 76. Kh6 {[%emt 0:00:04]} Qh8+ {[%emt 0:00:34]} 77. Kg5 {[%emt 0:00:03]} Qd8+ {[%emt 0:00:14]} 78. Kh5 {[%emt 0:00:08]} a5 {[%emt 0:00:14] Weighted Error Value: White=0.46/Black=0.23 (precise)} 0-1

[Event "USA Championship 2022"]
[Site "Saint Louis"]
[Date "2022.10.18"]
[Round "12.4"]
[White "Lenderman, Aleksandr"]
[Black "So, Wesley"]
[Result "0-1"]
[ECO "E04"]
[WhiteElo "2535"]
[BlackElo "2774"]
[Annotator "TA"]
[PlyCount "80"]
[EventDate "2022.09.05"]
[EventType "tourn"]
[EventCountry "USA"]
[SourceTitle "playchess.com"]
[Source "ChessBase"]
[SourceQuality "1"]
[TimeControl "40/5400+30:1800+30"]

{[%evp 17,80,16,14,10,5,0,0,0,0,0,0,0,0,0,0,0,0,0,0,0,0,-18,0,0,0,0,29,24,57,6,9,8,19,19,19,19,19,0,0,-54,0,-28,-22,-22,-27,-23,-20,-22,0,0,0,-54,-44,-81,-29,-38,-10,-90,-67,-902,-902,-867,-858,-810,-808]} 1. d4 {[%emt 0:00:03]} d5 {[%emt 0:01:31][%cal Bd7d5,Bd5c4][%mdl 32]} 2. Nf3 {[%emt 0:00:13]} Nf6 {[%emt 0:00:48]} 3. c4 {[%emt 0:00:14]} e6 {[%emt 0:00:28]} 4. g3 {[%emt 0:00:14]} dxc4 {[%emt 0:01:33]} 5. Bg2 {[%emt 0:00:11]} c5 {[%emt 0:00:03]} 6. O-O {[%emt 0:00:23]} Nc6 {[%emt 0:00:03]} 7. Ne5 {[%emt 0:00:20]} Bd7 {[%emt 0:00:05]} 8. Nd2 {[%emt 0:00:22][%cal Bb1d2,Bd2c4,Bc4e5][%mdl 32]} cxd4 {[%emt 0:00:25]} 9. Ndxc4 {[%emt 0:00:11]} Be7 $1 {[%emt 0:04:44][%mdl 4] is recently more successful than 9...Bc5.} 10. Qb3 {[%emt 0:00:22] E04: Open Catalan: 5 Nf3.} Qc7 {[%emt 0:01:37]} 11. Nxc6 {[%emt 0:00:17]} Bxc6 {[%emt 0:00:06]} ({But not} 11... bxc6 12. Bf4 Qd8 13. Rfd1 $16) 12. Bf4 {[%emt 0:00:08] The position is equal.} Qd8 {[%emt 0:00:07]} 13. Bxc6+ {[%emt 0:00:20]} bxc6 {[%emt 0:00:02]} 14. Ne5 {[%emt 0:00:38]} c5 {[%emt 0:00:02]} 15. Qa4+ {[%emt 0:00:24]} Kf8 {[%emt 0:00:03]} 16. e3 {[%emt 0:02:30]} Qe8 {[%emt 0:01:41] [#]} 17. Qa6 $146 {[%emt 0:01:13]} ({Predecessor:} 17. Qxe8+ Kxe8 18. exd4 cxd4 19. Rfd1 Bc5 20. Rac1 Bb6 21. Nc6 Nd5 22. Be5 Kd7 23. Bxg7 Rhc8 24. Ne5+ {½-½ (24) Murden,C (2436)-Cuadrado Wentwort Hyde,G (2447) ICCF email 2016}) 17... Nd5 {[%emt 0:09:15] [#] Hoping for ...g5.} 18. exd4 {[%emt 0:00:51]} cxd4 {[%emt 0:00:04]} 19. Rac1 {[%emt 0:04:31]} g5 {[%emt 0:07:43]} 20. Bd2 {[%emt 0:00:57] f4 is the strong threat.} Kg7 {[%emt 0:00:20]} 21. Qd3 {[%emt 0:27:55]} Rc8 {[%emt 0:13:13]} 22. Qxd4 {[%emt 0:18:52]} Rxc1 {[%emt 0:02:56]} 23. Bxc1 {[%emt 0:01:35]} ({White should play} 23. Rxc1 $14 Bf6 24. Re1) 23... Bf6 $11 {[%emt 0:02:50]} 24. Re1 {[%emt 0:07:37]} Qe7 {[%emt 0:13:26]} 25. h4 {[%emt 0:04:42] [#] Threatens to win with hxg5.} h6 {[%emt 0:05:02][%cal Rg5h4]} (25... gxh4 $2 26. Qg4+ Bg5 27. Bxg5 $18) 26. hxg5 {[%emt 0:01:01]} hxg5 {[%emt 0:00:01]} 27. Bd2 {[%emt 0:01:46]} Qb7 {[%emt 0:05:10][%cal Od5e3] White must now prevent ...Ne3!} 28. Re4 {[%emt 0:05:22] Against Ne3} (28. Qe4 $11) 28... Ne7 {[%emt 0:09:22]} (28... Rh5 $15) 29. Bc3 {[%emt 0:02:33]} Ng6 {[%emt 0:01:50]} 30. f3 {[%emt 0:04:12]} Rc8 {[%emt 0:08:46]} (30... Bxe5 $2 31. Rxe5 f6 32. Rxe6 Qxf3 33. Qxf6+ Qxf6 34. Rxf6 $18) 31. f4 {[%emt 0:08:00]} gxf4 {[%emt 0:06:52]} 32. gxf4 {[%emt 0:00:08]} Bxe5 {[%emt 0:00:03]} 33. fxe5 {[%emt 0:01:07]} Rh8 {[%emt 0:00:04][%cal Oa7a5]} 34. Qe3 {[%emt 0:01:18]} (34. Qd3 $11) 34... Rh5 $36 {[%emt 0:00:26][%mdl 2048] White is under pressure.} 35. a4 {[%emt 0:01:34]} Qd5 {[%emt 0:00:27]} (35... a5 $17) 36. Qd4 $1 $11 {[%emt 0:01:08]} Qa8 {[%emt 0:01:33] With the idea ...Qh8.} (36... Qb3 $5 {[%cal Rb3c2]} 37. Qd2 Qb6+ 38. Qd4 Qc6 $17) 37. Qe3 {[%emt 0:01:14]} (37. Kf2 $11 {remains equal.}) 37... Qh8 {[%emt 0:00:34] ( -> ...Rh1+)} 38. Kf1 $2 {[%emt 0:03:08][%mdl 8192]} (38. Qf3 $15) 38... Rh1+ $19 {[%emt 0:02:08] Black is clearly winning.} 39. Ke2 {[%emt 0:00:15]} Qh5+ {[%emt 0:01:02]} 40. Kd3 {[%emt 0:00:22]} Rh3 {[%emt 0:00:10] Weighted Error Value: White=0.32/Black=0.12 (very precise)} 0-1

[Event "USA Championship 2022"]
[Site "Saint Louis"]
[Date "2022.10.18"]
[Round "12.5"]
[White "Aronian, Levon"]
[Black "Moradiabadi, Elshan"]
[Result "1-0"]
[ECO "B12"]
[WhiteElo "2755"]
[BlackElo "2534"]
[Annotator "TA"]
[PlyCount "83"]
[EventDate "2022.09.05"]
[EventType "tourn"]
[EventCountry "USA"]
[SourceTitle "playchess.com"]
[Source "ChessBase"]
[SourceQuality "1"]
[TimeControl "40/5400+30:1800+30"]

{[%evp 9,83,22,29,8,24,23,29,23,30,33,47,52,50,23,31,17,18,23,32,27,27,14,11,0,0,0,7,16,25,16,54,54,48,41,44,43,36,43,31,-22,8,14,12,0,50,29,137,131,138,127,135,130,135,129,122,126,129,137,225,204,263,252,225,202,193,139,208,211,243,246,224,239,233,225,256,239]} 1. e4 {[%emt 0:00:02]} c6 {[%emt 0:01:29]} 2. d4 {[%emt 0:00:23]} d5 {[%emt 0:00:25]} 3. e5 {[%emt 0:00:05]} Bf5 {[%emt 0:00:04]} 4. Nf3 {[%emt 0:00:07]} e6 {[%emt 0:00:06]} 5. Be2 {[%emt 0:00:10]} Ne7 {[%emt 0:00:09][%cal Oc6c5]} 6. Nbd2 {[%emt 0:02:57][%cal Bb1d2,Bd2f1,Bf1g3][%mdl 32] B12: Caro-Kann: Advance Variation.} h6 {[%emt 0:00:18]} 7. O-O {[%emt 0:00:27]} Nd7 {[%emt 0:00:29]} 8. c3 {[%emt 0:06:40] White has an edge.} Qc7 {[%emt 0:07:07]} 9. Re1 {[%emt 0:04:18]} g5 {[%emt 0:11:03]} 10. Nf1 {[%emt 0:00:40]} Bg6 {[%emt 0:04:54]} 11. Ng3 {[%emt 0:02:48] [#]} c5 $146 {[%emt 0:04:06]} ({Predecessor:} 11... Nf5 12. Bd3 Nxg3 13. Bxg6 fxg6 14. fxg3 Nb6 15. b3 Qg7 16. Rf1 Be7 17. Ne1 Rf8 {½-½ (44) Pranav,V (2314)-Rozum,I (2589) Mumbai 2019}) 12. h3 {[%emt 0:02:15]} cxd4 {[%emt 0:06:38]} 13. cxd4 {[%emt 0:00:23]} Qc2 {[%emt 0:00:11] Inhibits Bd3.} 14. Qxc2 {[%emt 0:04:48]} Bxc2 {[%emt 0:00:02]} 15. Bd2 {[%emt 0:03:54]} Nc6 {[%emt 0:01:15]} 16. Bb5 {[%emt 0:01:30]} Bg6 {[%emt 0:00:28]} 17. Rac1 {[%emt 0:01:08]} Rc8 {[%emt 0:00:07]} 18. Re3 {[%emt 0:00:35]} Be7 {[%emt 0:09:05]} 19. Rb3 {[%emt 0:02:18]} Nb6 {[%emt 0:02:59]} 20. a4 $1 {[%emt 0:24:38][%cal Ba2a4,Ba4a5][%mdl 32]} O-O {[%emt 0:05:16]} 21. Bxc6 {[%emt 0:00:23]} bxc6 {[%emt 0:00:57]} 22. a5 $1 {[%emt 0:00:05]} Nc4 {[%emt 0:00:40] And now ...Rb8 would win.} 23. Rb7 {[%emt 0:00:04][%csl LRa7,LRe7]} Rfe8 {[%emt 0:00:10]} 24. Rxa7 {[%emt 0:00:58]} (24. Bc3 $1 $14) 24... Ra8 {[%emt 0:05:34]} 25. Rxa8 {[%emt 0:01:04]} Rxa8 {[%emt 0:00:02]} 26. Bc3 {[%emt 0:00:13]} Kf8 {[%emt 0:03:50]} ({Black should play} 26... Rb8 $11) 27. Nd2 {[%emt 0:02:49]} Ke8 {[%emt 0:01:03] Black is now going downhill.} (27... Nxd2 $1 $11 {remains equal.} 28. Bxd2 Rb8) 28. Nxc4 $16 {[%emt 0:02:05]} dxc4 {[%emt 0:00:02]} 29. Nf1 {[%emt 0:02:09]} c5 {[%emt 0:03:04]} 30. Ra1 {[%emt 0:00:15]} cxd4 {[%emt 0:00:46]} 31. Bxd4 {[%emt 0:00:18]} Bd3 {[%emt 0:03:35]} 32. Ne3 {[%emt 0:00:54]} Bd8 {[%emt 0:05:40] [#]} 33. Bc3 $1 {[%emt 0:00:46]} Bb6 {[%emt 0:01:35]} (33... h5 $16 34. g3 Rc8) 34. Ng4 $18 {[%emt 0:00:33]} h5 {[%emt 0:00:28]} 35. Nf6+ {[%emt 0:00:05]} Kd8 {[%emt 0:00:03]} 36. Rd1 {[%emt 0:01:14]} Bc5 {[%emt 0:00:37]} 37. b3 {[%emt 0:00:32]} (37. b4 Be7 38. Nxh5 (38. b5 Kc7 $16) 38... Rb8) (37. Nxh5 $18 Kc7 38. g4) 37... Kc8 {[%emt 0:00:24] [#]} (37... Kc7 $16 {might work better.} 38. bxc4 (38. Nxh5 Be2 $17) 38... Bg6) 38. bxc4 $1 {[%emt 0:00:43]} (38. Nxh5 Be2 39. Re1 Bxh5 $17) 38... Bxc4 {[%emt 0:00:04]} 39. Bd2 {[%emt 0:07:42] Strongly threatening Rc1.} (39. Nxh5 $6 Be2 40. Rc1 Kb7) 39... Ba3 {[%emt 0:00:35] Against Rc1} 40. Rb1 {[%emt 0:05:12]} ({Don't take} 40. Nxh5 $6 Be2 41. Ra1 Bb2) (40. Bxg5 $6 Rxa5 41. Ra1 Be2 $16) 40... h4 {[%emt 0:00:37]} 41. Ne4 {[%emt 0:30:39]} ({But not} 41. Bxg5 Rxa5 42. Ra1 (42. Bxh4 Rxe5 43. Rb8+ Kc7 $16) 42... Be2 43. Bxh4 Bb4 44. Rxa5 Bxa5) 41... Bd3 {[%emt 0:31:55]} 42. Rb3 {[%emt 0:00:52] Weighted Error Value: White=0.07 (flawless) /Black=0.17 (very precise)} 1-0

[Event "USA Championship 2022"]
[Site "Saint Louis"]
[Date "2022.10.18"]
[Round "12.6"]
[White "Xiong, Jeffery"]
[Black "Dominguez Perez, Leinier"]
[Result "1/2-1/2"]
[ECO "D20"]
[WhiteElo "2690"]
[BlackElo "2747"]
[Annotator "TA"]
[PlyCount "76"]
[EventDate "2022.09.05"]
[EventType "tourn"]
[EventCountry "USA"]
[SourceTitle "playchess.com"]
[Source "ChessBase"]
[SourceQuality "1"]
[TimeControl "40/5400+30:1800+30"]

{[%evp 9,76,52,59,56,52,62,45,52,57,53,62,65,56,32,27,29,26,28,19,22,24,19,22,21,20,29,25,18,26,33,35,18,28,18,16,0,22,0,0,-8,0,0,0,0,0,0,0,-18,0,0,0,0,0,0,0,0,0,0,0,0,0,0,0,0,0,0,0,0,0]} 1. d4 {[%emt 0:00:22]} d5 {[%emt 0:05:22]} 2. c4 {[%emt 0:01:13]} dxc4 {[%emt 0:00:05]} 3. e4 {[%emt 0:00:34]} (3. Nf3 Nf6 4. e3 e6 5. Bxc4 a6 6. O-O c5 7. dxc5 Bxc5 8. Qxd8+ Kxd8 9. Be2 Ke7 10. Nc3 b5 11. Nd2 Bb7 12. Nb3 Nbd7 13. Nxc5 Nxc5 14. b4 Nce4 15. Nxe4 Nxe4 16. Bb2 Rac8 17. Rfc1 Rhd8 18. Kf1 {½-½ (30) Xiong,J (2691)-Dominguez Perez,L (2754) chess24.com INT 2022}) 3... b5 {[%emt 0:00:06]} 4. a4 {[%emt 0:00:47]} c6 {[%emt 0:00:04]} 5. axb5 {[%emt 0:02:31]} cxb5 {[%emt 0:00:14]} 6. Nc3 {[%emt 0:00:15] D20: Queen's Gambit Accepted: 3 e3 and 3 e4.} Qb6 {[%emt 0:00:06] The modern move.} 7. b3 {[%emt 0:00:46]} e6 $1 {[%emt 0:01:08]} 8. bxc4 {[%emt 0:00:21] [#] And now c5 would win. White is slightly better.} Bb4 {[%emt 0:00:20]} 9. Bd2 {[%emt 0:01:11]} bxc4 {[%emt 0:00:23]} 10. Bxc4 {[%emt 0:00:45]} Ne7 {[%emt 0:00:13]} 11. Nge2 {[%emt 0:01:45]} O-O {[%emt 0:01:31] [#]} 12. Na4 $146 {[%emt 0:00:28]} ({Predecessor:} 12. O-O a5 13. Be3 Qc7 14. Bd3 Ba6 15. Rc1 Qb7 16. d5 exd5 17. exd5 Rd8 18. Be4 Bxc3 19. Rxc3 {1-0 (36) Martirosyan,H (2656)-Aronian,L (2767) Riga 2021}) 12... Bxd2+ {[%emt 0:13:21]} 13. Qxd2 {[%emt 0:00:45]} Qc6 {[%emt 0:00:05]} 14. Bd3 {[%emt 0:00:56]} Ba6 {[%emt 0:00:56]} 15. O-O {[%emt 0:00:26]} Bxd3 {[%emt 0:07:36]} 16. Qxd3 {[%emt 0:00:14]} a5 {[%emt 0:01:02]} 17. Rfc1 {[%emt 0:00:39]} Qd6 {[%emt 0:02:28]} 18. Nb2 {[%emt 0:00:34]} Nbc6 {[%emt 0:08:00]} 19. Nc4 {[%emt 0:00:28]} Qb8 {[%emt 0:13:07]} 20. Rcb1 {[%emt 0:22:00]} Qc7 {[%emt 0:01:30]} 21. h3 {[%emt 0:11:47]} Rfd8 {[%emt 0:02:39] The position is equal.} 22. Qc3 {[%emt 0:01:38]} h6 {[%emt 0:18:41]} (22... Rac8 $5 {[%cal Rc6d4]}) 23. Rb5 {[%emt 0:05:54][%cal Rc4a5]} Rac8 {[%emt 0:04:07][%cal Oc6d4]} 24. Ra4 {[%emt 0:10:53][%cal Rc4a5]} Qd7 {[%emt 0:06:44][%cal Rc6d4]} 25. Nb6 {[%emt 0:10:37]} ({Don't go for} 25. Qa3 $2 Nb4 26. Raxa5 (26. Rbxa5 $2 Rxc4 27. Rxb4 Rxb4 $19) 26... Rxc4 $19) 25... Nxd4 {[%emt 0:00:06]} 26. Nxd4 {[%emt 0:00:08]} Rxc3 {[%emt 0:00:06]} 27. Nxd7 {[%emt 0:00:06]} Rxd7 {[%emt 0:00:05]} 28. Rbxa5 {[%emt 0:00:10]} Nc6 {[%emt 0:04:47]} 29. Ra8+ {[%emt 0:00:20]} Kh7 {[%emt 0:01:13]} 30. Nxc6 {[%emt 0:07:16]} Rxc6 {[%emt 0:00:06]} 31. R4a7 {[%emt 0:00:09]} Rxa7 {[%emt 0:00:25]} 32. Rxa7 $11 {[%emt 0:00:02][%mdl 4096] Endgame KR-KR} f6 {[%emt 0:00:09]} 33. f3 {[%emt 0:00:22]} e5 {[%emt 0:00:06]} 34. h4 {[%emt 0:00:06]} h5 {[%emt 0:00:05]} 35. Rb7 {[%emt 0:00:06]} Rc2 {[%emt 0:00:07]} 36. Ra7 {[%emt 0:00:10]} Rc6 {[%emt 0:00:04]} 37. Rb7 {[%emt 0:00:06]} Rc2 {[%emt 0:00:03]} 38. Ra7 {[%emt 0:00:05]} Rc6 {[%emt 0:00:24] Weighted Error Value: White=0.05 (flawless) /Black=0.02 (flawless)} 1/2-1/2